Workbook

Sheet Sheet1 (排序)
A1: 贵阳市白云区2023年公开招聘中小学、幼儿园教师试教总成绩排名及进入体检名单
A2: 序号 | B2: 姓名 | C2: 准考证号 | D2: 报考单位 | E2: 报考岗位 | F2: 笔试成绩 | G2: 笔试百分制 | H2: 笔试成绩40% | I2: 面试成绩 | J2: 面试成绩60% | K2: 总成绩 | L2: 排名 | M2: 是否进入体检
A3: 1 | B3: 周晓利 | C3: 10601880405 | D3: 230601白云区第一高级中学 | E3: 01高中语文教师 | F3: 111 | G3: =F3/1.5 -> 74.00 | H3: =G3*0.4 -> 29.60 | I3: 93.20 | J3: =I3*0.6 -> 55.92 | K3: =H3+J3 -> 85.52 | L3: 1 | M3: 是
A4: 2 | B4: 周建梅 | C4: 10601754308 | D4: 230601白云区第一高级中学 | E4: 01高中语文教师 | F4: 121.5 | G4: 81.00 | H4: 32.40 | I4: 83.74 | J4: 50.24 | K4: 82.64 | L4: 2
A5: 3 | B5: 刘朝晖 | C5: 10601761727 | D5: 230601白云区第一高级中学 | E5: 01高中语文教师 | F5: 114.5 | G5: 76.33 | H5: 30.53 | I5: 86.12 | J5: 51.67 | K5: 82.21 | L5: 3
A6: 4 | B6: 张云亚 | C6: 10601761726 | D6: 230601白云区第一高级中学 | E6: 01高中语文教师 | F6: 114.5 | G6: 76.33 | H6: 30.53 | I6: 79.02 | J6: 47.41 | K6: 77.95 | L6: 4
A7: 5 | B7: 李敏 | C7: 10601861928 | D7: 230601白云区第一高级中学 | E7: 01高中语文教师 | F7: 112.5 | G7: 75.00 | H7: 30.00 | I7: 72.02 | J7: 43.21 | K7: 73.21 | L7: 5
A8: 6 | B8: 王双霞 | C8: 10601754412 | D8: 230601白云区第一高级中学 | E8: 01高中语文教师 | F8: 121.5 | G8: 81.00 | H8: 32.40 | I8: 62.82 | J8: 37.69 | K8: 70.09 | L8: 6
A9: 7 | B9: 简玉梅 | C9: 10601870609 | D9: 230601白云区第一高级中学 | E9: 02高中化学教师 | F9: 123 | G9: 82.00 | H9: 32.80 | I9: 82.12 | J9: 49.27 | K9: 82.07 | L9: 1 | M9: 是
A10: 8 | B10: 许秋琳 | C10: 10601860120 | D10: 230601白云区第一高级中学 | E10: 02高中化学教师 | F10: 113.5 | G10: 75.67 | H10: 30.27 | I10: 79.3 | J10: 47.58 | K10: 77.85 | L10: 2
A11: 9 | B11: 田小茂 | C11: 10601764009 | D11: 230601白云区第一高级中学 | E11: 02高中化学教师 | F11: 116 | G11: 77.33 | H11: 30.93 | I11: 76.6 | J11: 45.96 | K11: 76.89 | L11: 3
A12: 10 | B12: 蒋丽佳 | C12: 10601750625 | D12: 230601白云区第一高级中学 | E12: 02高中化学教师 | F12: 105 | G12: 70.00 | H12: 28.00 | I12: 64.6 | J12: 38.76 | K12: 66.76 | L12: 4
A13: 11 | B13: 侯芹 | C13: 10601862011 | D13: 230601白云区第一高级中学 | E13: 02高中化学教师 | F13: 113 | G13: 75.33 | H13: 30.13 | I13: 0 | J13: 0.00 | K13: 30.13 | L13: 5
A14: 12 | B14: 李丽娜 | C14: 10601760528 | D14: 230601白云区第一高级中学 | E14: 02高中化学教师 | F14: 105.5 | G14: 70.33 | H14: 28.13 | I14: 0 | J14: 0.00 | K14: 28.13 | L14: 6
A15: 13 | B15: 汪芯羽 | C15: 10601761825 | D15: 230602白云区第二高级中学 | E15: 01高中化学教师 | F15: 121 | G15: 80.67 | H15: 32.27 | I15: 71.42 | J15: 42.85 | K15: 75.12 | L15: 1 | M15: 是
A16: 14 | B16: 莫书银 | C16: 10601761001 | D16: 230602白云区第二高级中学 | E16: 01高中化学教师 | F16: 105 | G16: 70.00 | H16: 28.00 | I16: 75.84 | J16: 45.50 | K16: 73.50 | L16: 2
A17: 15 | B17: 周前进 | C17: 10601760330 | D17: 230602白云区第二高级中学 | E17: 01高中化学教师 | F17: 114.5 | G17: 76.33 | H17: 30.53 | I17: 62.8 | J17: 37.68 | K17: 68.21 | L17: 3
A18: 16 | B18: 罗小燕 | C18: 10601753809 | D18: 230602白云区第二高级中学 | E18: 01高中化学教师 | F18: 96 | G18: 64.00 | H18: 25.60 | I18: 0 | J18: 0.00 | K18: 25.60 | L18: 4
A19: 17 | B19: 许诗琪 | C19: 10601751005 | D19: 230602白云区第二高级中学 | E19: 02高中历史教师 | F19: 128.5 | G19: 85.67 | H19: 34.27 | I19: 76.4 | J19: 45.84 | K19: 80.11 | L19: 1 | M19: 是
A20: 18 | B20: 陈星燕 | C20: 10601861526 | D20: 230602白云区第二高级中学 | E20: 02高中历史教师 | F20: 120.5 | G20: 80.33 | H20: 32.13 | I20: 77.8 | J20: 46.68 | K20: 78.81 | L20: 2 | M20: 是
A21: 19 | B21: 郭娅 | C21: 10601861023 | D21: 230602白云区第二高级中学 | E21: 02高中历史教师 | F21: 121 | G21: 80.67 | H21: 32.27 | I21: 76 | J21: 45.60 | K21: 77.87 | L21: 3
A22: 20 | B22: 郭庆港 | C22: 10601753929 | D22: 230602白云区第二高级中学 | E22: 02高中历史教师 | F22: 114.5 | G22: 76.33 | H22: 30.53 | I22: 78.4 | J22: 47.04 | K22: 77.57 | L22: 4
A23: 21 | B23: 黄橙橙 | C23: 10601883322 | D23: 230602白云区第二高级中学 | E23: 02高中历史教师 | F23: 111.5 | G23: 74.33 | H23: 29.73 | I23: 79 | J23: 47.40 | K23: 77.13 | L23: 5
A24: 22 | B24: 张艳 | C24: 10601751016 | D24: 230602白云区第二高级中学 | E24: 02高中历史教师 | F24: 121 | G24: 80.67 | H24: 32.27 | I24: 73.8 | J24: 44.28 | K24: 76.55 | L24: 6
A25: 23 | B25: 彭文萍 | C25: 10601881818 | D25: 230602白云区第二高级中学 | E25: 02高中历史教师 | F25: 111 | G25: 74.00 | H25: 29.60 | I25: 77.2 | J25: 46.32 | K25: 75.92 | L25: 7
A26: 24 | B26: 高珊 | C26: 10601872630 | D26: 230602白云区第二高级中学 | E26: 02高中历史教师 | F26: 111 | G26: 74.00 | H26: 29.60 | I26: 73.8 | J26: 44.28 | K26: 73.88 | L26: 8
A27: 25 | B27: 蹇丽 | C27: 10601871630 | D27: 230602白云区第二高级中学 | E27: 02高中历史教师 | F27: 111.5 | G27: 74.33 | H27: 29.73 | I27: 72.2 | J27: 43.32 | K27: 73.05 | L27: 9
A28: 26 | B28: 范雯雯 | C28: 10601882301 | D28: 230602白云区第二高级中学 | E28: 02高中历史教师 | F28: 114.5 | G28: 76.33 | H28: 30.53 | I28: 0 | J28: 0.00 | K28: 30.53 | L28: 10
A29: 27 | B29: 魏琴 | C29: 10601754205 | D29: 230602白云区第二高级中学 | E29: 02高中历史教师 | F29: 111.5 | G29: 74.33 | H29: 29.73 | I29: 0 | J29: 0.00 | K29: 29.73 | L29: 11
A30: 28 | B30: 杨茜 | C30: 10601882306 | D30: 230602白云区第二高级中学 | E30: 02高中历史教师 | F30: 110 | G30: 73.33 | H30: 29.33 | I30: 0 | J30: 0.00 | K30: 29.33 | L30: 12
A31: 29 | B31: 余华 | C31: 10601754118 | D31: 230602白云区第二高级中学 | E31: 03高中地理教师 | F31: 119 | G31: 79.33 | H31: 31.73 | I31: 81.4 | J31: 48.84 | K31: 80.57 | L31: 1 | M31: 是
A32: 30 | B32: 靳红云 | C32: 10601863503 | D32: 230602白云区第二高级中学 | E32: 03高中地理教师 | F32: 121 | G32: 80.67 | H32: 32.27 | I32: 79.4 | J32: 47.64 | K32: 79.91 | L32: 2
A33: 31 | B33: 夏毓 | C33: 10601861203 | D33: 230602白云区第二高级中学 | E33: 03高中地理教师 | F33: 125.5 | G33: 83.67 | H33: 33.47 | I33: 77.2 | J33: 46.32 | K33: 79.79 | L33: 3
A34: 32 | B34: 李萍 | C34: 10601881624 | D34: 230602白云区第二高级中学 | E34: 03高中地理教师 | F34: 121 | G34: 80.67 | H34: 32.27 | I34: 77.4 | J34: 46.44 | K34: 78.71 | L34: 4
A35: 33 | B35: 肖丽 | C35: 10601863301 | D35: 230602白云区第二高级中学 | E35: 03高中地理教师 | F35: 123.5 | G35: 82.33 | H35: 32.93 | I35: 70 | J35: 42.00 | K35: 74.93 | L35: 5
A36: 34 | B36: 李雪莲 | C36: 10601751227 | D36: 230602白云区第二高级中学 | E36: 03高中地理教师 | F36: 120.5 | G36: 80.33 | H36: 32.13 | I36: 0 | J36: 0.00 | K36: 32.13 | L36: 6
A37: 35 | B37: 张洁 | C37: 10601751915 | D37: 230602白云区第二高级中学 | E37: 04高中日语教师 | F37: 125.5 | G37: 83.67 | H37: 33.47 | I37: 91.00 | J37: 54.60 | K37: 88.07 | L37: 1 | M37: 是
A38: 36 | B38: 张玲梓 | C38: 10601861312 | D38: 230602白云区第二高级中学 | E38: 04高中日语教师 | F38: 127 | G38: 84.67 | H38: 33.87 | I38: 90.10 | J38: 54.06 | K38: 87.93 | L38: 2 | M38: 是
A39: 37 | B39: 雷明竹 | C39: 10601882716 | D39: 230602白云区第二高级中学 | E39: 04高中日语教师 | F39: 128 | G39: 85.33 | H39: 34.13 | I39: 83.02 | J39: 49.81 | K39: 83.95 | L39: 3
A40: 38 | B40: 高雁 | C40: 10601873018 | D40: 230602白云区第二高级中学 | E40: 04高中日语教师 | F40: 121.5 | G40: 81.00 | H40: 32.40 | I40: 85.42 | J40: 51.25 | K40: 83.65 | L40: 4
A41: 39 | B41: 杨欢 | C41: 10601754404 | D41: 230602白云区第二高级中学 | E41: 04高中日语教师 | F41: 122 | G41: 81.33 | H41: 32.53 | I41: 85.04 | J41: 51.02 | K41: 83.56 | L41: 5
A42: 40 | B42: 张琴月 | C42: 10601882427 | D42: 230602白云区第二高级中学 | E42: 04高中日语教师 | F42: 125 | G42: 83.33 | H42: 33.33 | I42: 83.18 | J42: 49.91 | K42: 83.24 | L42: 6
A43: 41 | B43: 陈嫔 | C43: 10601872025 | D43: 230602白云区第二高级中学 | E43: 04高中日语教师 | F43: 124.5 | G43: 83.00 | H43: 33.20 | I43: 82.50 | J43: 49.50 | K43: 82.70 | L43: 7
A44: 42 | B44: 赵庭英 | C44: 10601883601 | D44: 230602白云区第二高级中学 | E44: 04高中日语教师 | F44: 118 | G44: 78.67 | H44: 31.47 | I44: 77.96 | J44: 46.78 | K44: 78.24 | L44: 8
A45: 43 | B45: 高慧 | C45: 10601751315 | D45: 230602白云区第二高级中学 | E45: 04高中日语教师 | F45: 118.5 | G45: 79.00 | H45: 31.60 | I45: 76.96 | J45: 46.18 | K45: 77.78 | L45: 9
A46: 44 | B46: 杨娇 | C46: 10601750916 | D46: 230602白云区第二高级中学 | E46: 04高中日语教师 | F46: 123 | G46: 82.00 | H46: 32.80 | I46: 73.74 | J46: 44.24 | K46: 77.04 | L46: 10
A47: 45 | B47: 彭兰 | C47: 10601752322 | D47: 230602白云区第二高级中学 | E47: 04高中日语教师 | F47: 124.5 | G47: 83.00 | H47: 33.20 | I47: 72.52 | J47: 43.51 | K47: 76.71 | L47: 11
A48: 46 | B48: 龙仕霞 | C48: 10601762717 | D48: 230602白云区第二高级中学 | E48: 04高中日语教师 | F48: 118 | G48: 78.67 | H48: 31.47 | I48: 0.00 | J48: 0.00 | K48: 31.47 | L48: 12
A49: 47 | B49: 简瑛 | C49: 10601882003 | D49: 230603白云区实验中学 | E49: 01初中数学教师 | F49: 112.5 | G49: 75.00 | H49: 30.00 | I49: 90.54 | J49: 54.32 | K49: 84.32 | L49: 1 | M49: 是
A50: 48 | B50: 王孝银 | C50: 10601881229 | D50: 230603白云区实验中学 | E50: 01初中数学教师 | F50: 116.5 | G50: 77.67 | H50: 31.07 | I50: 86.06 | J50: 51.64 | K50: 82.70 | L50: 2 | M50: 是
A51: 49 | B51: 何兰兰 | C51: 10601870621 | D51: 230603白云区实验中学 | E51: 01初中数学教师 | F51: 112 | G51: 74.67 | H51: 29.87 | I51: 86.96 | J51: 52.18 | K51: 82.04 | L51: 3
A52: 50 | B52: 杨正标 | C52: 10601861201 | D52: 230603白云区实验中学 | E52: 01初中数学教师 | F52: 118.5 | G52: 79.00 | H52: 31.60 | I52: 82.08 | J52: 49.25 | K52: 80.85 | L52: 4
A53: 51 | B53: 刘达峰 | C53: 10601754330 | D53: 230603白云区实验中学 | E53: 01初中数学教师 | F53: 110 | G53: 73.33 | H53: 29.33 | I53: 84.98 | J53: 50.99 | K53: 80.32 | L53: 5
A54: 52 | B54: 顾清影 | C54: 10601883203 | D54: 230603白云区实验中学 | E54: 01初中数学教师 | F54: 121 | G54: 80.67 | H54: 32.27 | I54: 79.96 | J54: 47.98 | K54: 80.24 | L54: 6
A55: 53 | B55: 杨钦媛 | C55: 10601880519 | D55: 230603白云区实验中学 | E55: 01初中数学教师 | F55: 118 | G55: 78.67 | H55: 31.47 | I55: 80.54 | J55: 48.32 | K55: 79.79 | L55: 7
A56: 54 | B56: 陈凤娟 | C56: 10601861617 | D56: 230603白云区实验中学 | E56: 01初中数学教师 | F56: 111.5 | G56: 74.33 | H56: 29.73 | I56: 82.98 | J56: 49.79 | K56: 79.52 | L56: 8
A57: 55 | B57: 符娴莹 | C57: 10601762926 | D57: 230603白云区实验中学 | E57: 01初中数学教师 | F57: 113 | G57: 75.33 | H57: 30.13 | I57: 80.04 | J57: 48.02 | K57: 78.16 | L57: 9
A58: 56 | B58: 陈旭 | C58: 10601762523 | D58: 230603白云区实验中学 | E58: 01初中数学教师 | F58: 114.5 | G58: 76.33 | H58: 30.53 | I58: 74.24 | J58: 44.54 | K58: 75.08 | L58: 10
A59: 57 | B59: 简慧容 | C59: 10601880108 | D59: 230603白云区实验中学 | E59: 01初中数学教师 | F59: 116 | G59: 77.33 | H59: 30.93 | I59: 72.56 | J59: 43.54 | K59: 74.47 | L59: 11
A60: 58 | B60: 杜廷权 | C60: 10601871701 | D60: 230603白云区实验中学 | E60: 01初中数学教师 | F60: 113.5 | G60: 75.67 | H60: 30.27 | I60: 70.46 | J60: 42.28 | K60: 72.54 | L60: 12
A61: 59 | B61: 罗宇阳 | C61: 10601762609 | D61: 230603白云区实验中学 | E61: 02初中心理健康与教育教师 | F61: 119.5 | G61: 79.67 | H61: 31.87 | I61: 87.54 | J61: 52.52 | K61: 84.39 | L61: 1 | M61: 是
A62: 60 | B62: 吴凤 | C62: 10601882421 | D62: 230603白云区实验中学 | E62: 02初中心理健康与教育教师 | F62: 122 | G62: 81.33 | H62: 32.53 | I62: 81.52 | J62: 48.91 | K62: 81.45 | L62: 2
A63: 61 | B63: 范艳 | C63: 10601872110 | D63: 230603白云区实验中学 | E63: 02初中心理健康与教育教师 | F63: 124.5 | G63: 83.00 | H63: 33.20 | I63: 75.96 | J63: 45.58 | K63: 78.78 | L63: 3
A64: 62 | B64: 蔡思瑾 | C64: 10601751930 | D64: 230603白云区实验中学 | E64: 02初中心理健康与教育教师 | F64: 119 | G64: 79.33 | H64: 31.73 | I64: 76.18 | J64: 45.71 | K64: 77.44 | L64: 4
A65: 63 | B65: 徐小丽 | C65: 10601750503 | D65: 230603白云区实验中学 | E65: 02初中心理健康与教育教师 | F65: 124 | G65: 82.67 | H65: 33.07 | I65: 71.16 | J65: 42.70 | K65: 75.76 | L65: 5
A66: 64 | B66: 邓飞 | C66: 10601863513 | D66: 230603白云区实验中学 | E66: 02初中心理健康与教育教师 | F66: 119 | G66: 79.33 | H66: 31.73 | I66: 72.86 | J66: 43.72 | K66: 75.45 | L66: 6
A67: 65 | B67: 陶燕 | C67: 10601752126 | D67: 230603白云区实验中学 | E67: 02初中心理健康与教育教师 | F67: 119 | G67: =F67/1.5 -> 79.33 | H67: =G67*0.4 -> 31.73 | I67: 72.6 | J67: =I67*0.6 -> 43.56 | K67: =H67+J67 -> 75.29 | L67: 7
A68: 66 | B68: 尹俊睿 | C68: 10601751707 | D68: 230603白云区实验中学 | E68: 03初中体育教师 | F68: 116.5 | G68: 77.67 | H68: 31.07 | I68: 82.86 | J68: 49.72 | K68: 80.78 | L68: 1 | M68: 是
A69: 67 | B69: 贾龙 | C69: 10601760507 | D69: 230603白云区实验中学 | E69: 03初中体育教师 | F69: 115.5 | G69: 77.00 | H69: 30.80 | I69: 77.36 | J69: 46.42 | K69: 77.22 | L69: 2
A70: 68 | B70: 田忠婵 | C70: 10601760517 | D70: 230603白云区实验中学 | E70: 03初中体育教师 | F70: 111.5 | G70: 74.33 | H70: 29.73 | I70: 76.44 | J70: 45.86 | K70: 75.60 | L70: 3
A71: 69 | B71: 袁林 | C71: 10601880910 | D71: 230603白云区实验中学 | E71: 03初中体育教师 | F71: 106.5 | G71: 71.00 | H71: 28.40 | I71: 78.06 | J71: 46.84 | K71: 75.24 | L71: 4
A72: 70 | B72: 何遂龙 | C72: 10601752314 | D72: 230603白云区实验中学 | E72: 03初中体育教师 | F72: 106.5 | G72: 71.00 | H72: 28.40 | I72: 75.78 | J72: 45.47 | K72: 73.87 | L72: 5
A73: 71 | B73: 何可融 | C73: 10601861221 | D73: 230603白云区实验中学 | E73: 03初中体育教师 | F73: 108.5 | G73: 72.33 | H73: 28.93 | I73: 69.42 | J73: 41.65 | K73: 70.59 | L73: 6
A74: 72 | B74: 杨玉龙 | C74: 10601750319 | D74: 230603白云区实验中学 | E74: 03初中体育教师 | F74: 110 | G74: 73.33 | H74: 29.33 | I74: 0 | J74: 0.00 | K74: 29.33 | L74: 7
A75: 73 | B75: 黄娅丹 | C75: 10601872215 | D75: 230604白云区第五中学 | E75: 01初中数学教师 | F75: 126.5 | G75: 84.33 | H75: 33.73 | I75: 86.84 | J75: 52.10 | K75: 85.84 | L75: 1 | M75: 是
A76: 74 | B76: 蒋艳 | C76: 10601862813 | D76: 230604白云区第五中学 | E76: 01初中数学教师 | F76: 123.5 | G76: 82.33 | H76: 32.93 | I76: 83.34 | J76: 50.00 | K76: 82.94 | L76: 2 | M76: 是
A77: 75 | B77: 曹航 | C77: 10601763405 | D77: 230604白云区第五中学 | E77: 01初中数学教师 | F77: 117.5 | G77: 78.33 | H77: 31.33 | I77: 84.70 | J77: 50.82 | K77: 82.15 | L77: 3
A78: 76 | B78: 卢玲丽 | C78: 10601882025 | D78: 230604白云区第五中学 | E78: 01初中数学教师 | F78: 118.5 | G78: 79.00 | H78: 31.60 | I78: 83.30 | J78: 49.98 | K78: 81.58 | L78: 4
A79: 77 | B79: 朱婷 | C79: 10601871402 | D79: 230604白云区第五中学 | E79: 01初中数学教师 | F79: 125.5 | G79: 83.67 | H79: 33.47 | I79: 78.74 | J79: 47.24 | K79: 80.71 | L79: 5
A80: 78 | B80: 尹德华 | C80: 10601871223 | D80: 230604白云区第五中学 | E80: 01初中数学教师 | F80: 122.5 | G80: 81.67 | H80: 32.67 | I80: 79.26 | J80: 47.56 | K80: 80.22 | L80: 6
A81: 79 | B81: 杨群英 | C81: 10601753229 | D81: 230604白云区第五中学 | E81: 01初中数学教师 | F81: 118 | G81: 78.67 | H81: 31.47 | I81: 77.16 | J81: 46.30 | K81: 77.76 | L81: 7
A82: 80 | B82: 秦慧 | C82: 10601761904 | D82: 230604白云区第五中学 | E82: 01初中数学教师 | F82: 124.5 | G82: 83.00 | H82: 33.20 | I82: 0.00 | J82: 0.00 | K82: 33.20 | L82: 8
A83: 81 | B83: 李小娇 | C83: 10601863101 | D83: 230604白云区第五中学 | E83: 01初中数学教师 | F83: 123 | G83: 82.00 | H83: 32.80 | I83: 0.00 | J83: 0.00 | K83: 32.80 | L83: 9
A84: 82 | B84: 赵庆波 | C84: 10601860125 | D84: 230604白云区第五中学 | E84: 01初中数学教师 | F84: 117.5 | G84: 78.33 | H84: 31.33 | I84: 0.00 | J84: 0.00 | K84: 31.33 | L84: 10
A85: 83 | B85: 喻文霞 | C85: 10601753524 | D85: 230604白云区第五中学 | E85: 01初中数学教师 | F85: 115.5 | G85: 77.00 | H85: 30.80 | I85: 0.00 | J85: 0.00 | K85: 30.80 | L85: 11
A86: 84 | B86: 施前前 | C86: 10601871216 | D86: 230604白云区第五中学 | E86: 01初中数学教师 | F86: 115.5 | G86: 77.00 | H86: 30.80 | I86: 0.00 | J86: 0.00 | K86: 30.80 | L86: 12
A87: 85 | B87: 唐艳妮 | C87: 10601751229 | D87: 230604白云区第五中学 | E87: 02初中语文教师 | F87: 124 | G87: 82.67 | H87: 33.07 | I87: 88.00 | J87: 52.80 | K87: 85.87 | L87: 1 | M87: 是
A88: 86 | B88: 严莲 | C88: 10601870230 | D88: 230604白云区第五中学 | E88: 02初中语文教师 | F88: 131 | G88: 87.33 | H88: 34.93 | I88: 84.10 | J88: 50.46 | K88: 85.39 | L88: 2 | M88: 是
A89: 87 | B89: 刘文卓睿 | C89: 10601860611 | D89: 230604白云区第五中学 | E89: 02初中语文教师 | F89: 121 | G89: 80.67 | H89: 32.27 | I89: 86.40 | J89: 51.84 | K89: 84.11 | L89: 3
A90: 88 | B90: 赵文婷 | C90: 10601753327 | D90: 230604白云区第五中学 | E90: 02初中语文教师 | F90: 125.5 | G90: 83.67 | H90: 33.47 | I90: 83.66 | J90: 50.20 | K90: 83.66 | L90: 4
A91: 89 | B91: 田昱鑫 | C91: 10601872818 | D91: 230604白云区第五中学 | E91: 02初中语文教师 | F91: 123 | G91: 82.00 | H91: 32.80 | I91: 83.50 | J91: 50.10 | K91: 82.90 | L91: 5
A92: 90 | B92: 马静敏 | C92: 10601870917 | D92: 230604白云区第五中学 | E92: 02初中语文教师 | F92: 122 | G92: 81.33 | H92: 32.53 | I92: 82.50 | J92: 49.50 | K92: 82.03 | L92: 6
A93: 91 | B93: 王琴 | C93: 10601751208 | D93: 230604白云区第五中学 | E93: 02初中语文教师 | F93: 126 | G93: 84.00 | H93: 33.60 | I93: 80.08 | J93: 48.05 | K93: 81.65 | L93: 7
A94: 92 | B94: 田宇 | C94: 10601882106 | D94: 230604白云区第五中学 | E94: 02初中语文教师 | F94: 124 | G94: 82.67 | H94: 33.07 | I94: 75.70 | J94: 45.42 | K94: 78.49 | L94: 8
A95: 93 | B95: 李章彩 | C95: 10601753917 | D95: 230604白云区第五中学 | E95: 02初中语文教师 | F95: 127.5 | G95: 85.00 | H95: 34.00 | I95: 73.16 | J95: 43.90 | K95: 77.90 | L95: 9
A96: 94 | B96: 孟梅 | C96: 10601754121 | D96: 230604白云区第五中学 | E96: 02初中语文教师 | F96: 122.5 | G96: 81.67 | H96: 32.67 | I96: 63.78 | J96: 38.27 | K96: 70.93 | L96: 10
A97: 95 | B97: 陈顶琼 | C97: 10601763809 | D97: 230604白云区第五中学 | E97: 02初中语文教师 | F97: 126 | G97: 84.00 | H97: 33.60 | I97: 0.00 | J97: 0.00 | K97: 33.60 | L97: 11
A98: 96 | B98: 胡章意 | C98: 10601750903 | D98: 230604白云区第五中学 | E98: 02初中语文教师 | F98: 123 | G98: 82.00 | H98: 32.80 | I98: 0.00 | J98: 0.00 | K98: 32.80 | L98: 12
A99: 97 | B99: 杨粉 | C99: 10601881210 | D99: 230605白云区第七中学 | E99: 01初中道德与法治教师 | F99: 124 | G99: 82.67 | H99: 33.07 | I99: 83.6 | J99: 50.16 | K99: 83.23 | L99: 1 | M99: 是
A100: 98 | B100: 贾福会 | C100: 10601760428 | D100: 230605白云区第七中学 | E100: 01初中道德与法治教师 | F100: 130 | G100: 86.67 | H100: 34.67 | I100: 80.8 | J100: 48.48 | K100: 83.15 | L100: 2 | M100: 是
A101: 99 | B101: 黎艳 | C101: 10601872708 | D101: 230605白云区第七中学 | E101: 01初中道德与法治教师 | F101: 125.5 | G101: 83.67 | H101: 33.47 | I101: 82.6 | J101: 49.56 | K101: 83.03 | L101: 3
A102: 100 | B102: 高健 | C102: 10601751722 | D102: 230605白云区第七中学 | E102: 01初中道德与法治教师 | F102: 125 | G102: 83.33 | H102: 33.33 | I102: 80.2 | J102: 48.12 | K102: 81.45 | L102: 4
A103: 101 | B103: 陈雨微 | C103: 10601761316 | D103: 230605白云区第七中学 | E103: 01初中道德与法治教师 | F103: 128.5 | G103: 85.67 | H103: 34.27 | I103: 77.4 | J103: 46.44 | K103: 80.71 | L103: 5
A104: 102 | B104: 张丽娟 | C104: 10601860420 | D104: 230605白云区第七中学 | E104: 01初中道德与法治教师 | F104: 128.5 | G104: 85.67 | H104: 34.27 | I104: 75 | J104: 45.00 | K104: 79.27 | L104: 6
A105: 103 | B105: 顾连 | C105: 10601861728 | D105: 230605白云区第七中学 | E105: 01初中道德与法治教师 | F105: 129.5 | G105: 86.33 | H105: 34.53 | I105: 72 | J105: 43.20 | K105: 77.73 | L105: 7
A106: 104 | B106: 谢荇 | C106: 10601871208 | D106: 230605白云区第七中学 | E106: 01初中道德与法治教师 | F106: 127 | G106: 84.67 | H106: 33.87 | I106: 72 | J106: 43.20 | K106: 77.07 | L106: 8
A107: 105 | B107: 丁翠 | C107: 10601762027 | D107: 230605白云区第七中学 | E107: 01初中道德与法治教师 | F107: 123 | G107: 82.00 | H107: 32.80 | I107: 72.8 | J107: 43.68 | K107: 76.48 | L107: 9
A108: 106 | B108: 杨秋 | C108: 10601871409 | D108: 230605白云区第七中学 | E108: 01初中道德与法治教师 | F108: 130 | G108: 86.67 | H108: 34.67 | I108: 69.6 | J108: 41.76 | K108: 76.43 | L108: 10
A109: 107 | B109: 陈定美 | C109: 10601754105 | D109: 230605白云区第七中学 | E109: 01初中道德与法治教师 | F109: 124.5 | G109: 83.00 | H109: 33.20 | I109: 68.2 | J109: 40.92 | K109: 74.12 | L109: 11
A110: 108 | B110: 文静 | C110: 10601761325 | D110: 230605白云区第七中学 | E110: 01初中道德与法治教师 | F110: 124 | G110: 82.67 | H110: 33.07 | I110: 0 | J110: 0.00 | K110: 33.07 | L110: 12
A111: 109 | B111: 谭理凤 | C111: 10601881224 | D111: 230605白云区第七中学 | E111: 01初中道德与法治教师 | F111: 123 | G111: 82.00 | H111: 32.80 | I111: 0 | J111: 0.00 | K111: 32.80 | L111: 13
A112: 110 | B112: 易倩琳 | C112: 10601760722 | D112: 230606白云区第九中学 | E112: 01初中数学教师 | F112: 128 | G112: 85.33 | H112: 34.13 | I112: 83.68 | J112: 50.21 | K112: 84.34 | L112: 1 | M112: 是
A113: 111 | B113: 姚菲 | C113: 10601872605 | D113: 230606白云区第九中学 | E113: 01初中数学教师 | F113: 110 | G113: 73.33 | H113: 29.33 | I113: 85.92 | J113: 51.55 | K113: 80.89 | L113: 2 | M113: 是
A114: 112 | B114: 樊思菊 | C114: 10601754112 | D114: 230606白云区第九中学 | E114: 01初中数学教师 | F114: 130.5 | G114: 87.00 | H114: 34.80 | I114: 74.38 | J114: 44.63 | K114: 79.43 | L114: 3
A115: 113 | B115: 马凯 | C115: 10601760208 | D115: 230606白云区第九中学 | E115: 01初中数学教师 | F115: 118 | G115: 78.67 | H115: 31.47 | I115: 70.54 | J115: 42.32 | K115: 73.79 | L115: 4
A116: 114 | B116: 蒲琴念 | C116: 10601752809 | D116: 230606白云区第九中学 | E116: 01初中数学教师 | F116: 122 | G116: 81.33 | H116: 32.53 | I116: 68.42 | J116: 41.05 | K116: 73.59 | L116: 5
A117: 115 | B117: 熊凤琴 | C117: 10601881715 | D117: 230606白云区第九中学 | E117: 01初中数学教师 | F117: 118 | G117: 78.67 | H117: 31.47 | I117: 67.68 | J117: 40.61 | K117: 72.07 | L117: 6
A118: 116 | B118: 冯香 | C118: 10601750730 | D118: 230606白云区第九中学 | E118: 01初中数学教师 | F118: 115 | G118: 76.67 | H118: 30.67 | I118: 65.98 | J118: 39.59 | K118: 70.25 | L118: 7
A119: 117 | B119: 杨圆圆 | C119: 10601761326 | D119: 230606白云区第九中学 | E119: 01初中数学教师 | F119: 109.5 | G119: 73.00 | H119: 29.20 | I119: 64.04 | J119: 38.42 | K119: 67.62 | L119: 8
A120: 118 | B120: 陶志 | C120: 10601750406 | D120: 230606白云区第九中学 | E120: 01初中数学教师 | F120: 119 | G120: 79.33 | H120: 31.73 | I120: 0.00 | J120: 0.00 | K120: 31.73 | L120: 9
A121: 119 | B121: 何尧 | C121: 10601881528 | D121: 230606白云区第九中学 | E121: 01初中数学教师 | F121: 115.5 | G121: 77.00 | H121: 30.80 | I121: 0.00 | J121: 0.00 | K121: 30.80 | L121: 10
A122: 120 | B122: 韩鹏 | C122: 10601760404 | D122: 230606白云区第九中学 | E122: 01初中数学教师 | F122: 111 | G122: 74.00 | H122: 29.60 | I122: 0.00 | J122: 0.00 | K122: 29.60 | L122: 11
A123: 121 | B123: 罗昌算 | C123: 10601872429 | D123: 230606白云区第九中学 | E123: 01初中数学教师 | F123: 109 | G123: 72.67 | H123: 29.07 | I123: 0.00 | J123: 0.00 | K123: 29.07 | L123: 12
A124: 122 | B124: 毛健梅 | C124: 10601872909 | D124: 230606白云区第九中学 | E124: 02初中信息技术教师 | F124: 123.5 | G124: 82.33 | H124: 32.93 | I124: 87.5 | J124: 52.50 | K124: 85.43 | L124: 1 | M124: 是
A125: 123 | B125: 宋倩 | C125: 10601760809 | D125: 230606白云区第九中学 | E125: 02初中信息技术教师 | F125: 125 | G125: 83.33 | H125: 33.33 | I125: 85.08 | J125: 51.05 | K125: 84.38 | L125: 2
A126: 124 | B126: 刘鹏飞 | C126: 10601752216 | D126: 230606白云区第九中学 | E126: 02初中信息技术教师 | F126: 123.5 | G126: 82.33 | H126: 32.93 | I126: 82.24 | J126: 49.34 | K126: 82.28 | L126: 3
A127: 125 | B127: 费树彬 | C127: 10601882408 | D127: 230606白云区第九中学 | E127: 02初中信息技术教师 | F127: 122 | G127: 81.33 | H127: 32.53 | I127: 82.44 | J127: 49.46 | K127: 82.00 | L127: 4
A128: 126 | B128: 徐碧 | C128: 10601760804 | D128: 230606白云区第九中学 | E128: 02初中信息技术教师 | F128: 126.5 | G128: 84.33 | H128: 33.73 | I128: 74.62 | J128: 44.77 | K128: 78.51 | L128: 5
A129: 127 | B129: 马召点 | C129: 10601883716 | D129: 230606白云区第九中学 | E129: 02初中信息技术教师 | F129: 125.5 | G129: 83.67 | H129: 33.47 | I129: 67.36 | J129: 40.42 | K129: 73.88 | L129: 6
A130: 128 | B130: 吴门来 | C130: 10601751921 | D130: 230606白云区第九中学 | E130: 03初中历史教师 | F130: 115.5 | G130: 77.00 | H130: 30.80 | I130: 83.6 | J130: 50.16 | K130: 80.96 | L130: 1 | M130: 是
A131: 129 | B131: 胥娅 | C131: 10601871418 | D131: 230606白云区第九中学 | E131: 03初中历史教师 | F131: 120.5 | G131: =F131/1.5 -> 80.33 | H131: =G131*0.4 -> 32.13 | I131: 76.72 | J131: =I131*0.6 -> 46.03 | K131: =H131+J131 -> 78.17 | L131: 2
A132: 130 | B132: 钟方琴 | C132: 10601754329 | D132: 230606白云区第九中学 | E132: 03初中历史教师 | F132: 118.5 | G132: 79.00 | H132: 31.60 | I132: 75.7 | J132: 45.42 | K132: 77.02 | L132: 3
A133: 131 | B133: 陈文均 | C133: 10601752019 | D133: 230606白云区第九中学 | E133: 03初中历史教师 | F133: 117 | G133: 78.00 | H133: 31.20 | I133: 74.8 | J133: 44.88 | K133: 76.08 | L133: 4
A134: 132 | B134: 李翠兰 | C134: 10601862425 | D134: 230606白云区第九中学 | E134: 03初中历史教师 | F134: 115 | G134: 76.67 | H134: 30.67 | I134: 73 | J134: 43.80 | K134: 74.47 | L134: 5
A135: 133 | B135: 张薇 | C135: 10601751716 | D135: 230606白云区第九中学 | E135: 03初中历史教师 | F135: 117.5 | G135: 78.33 | H135: 31.33 | I135: 71.52 | J135: 42.91 | K135: 74.25 | L135: 6
A136: 134 | B136: 蔡家燕 | C136: 10601760322 | D136: 230606白云区第九中学 | E136: 04初中生物教师 | F136: 125 | G136: 83.33 | H136: 33.33 | I136: 74 | J136: 44.40 | K136: 77.73 | L136: 1 | M136: 是
A137: 135 | B137: 张丽明 | C137: 10601750113 | D137: 230606白云区第九中学 | E137: 04初中生物教师 | F137: 124.5 | G137: 83.00 | H137: 33.20 | I137: 73.8 | J137: 44.28 | K137: 77.48 | L137: 2
A138: 136 | B138: 谢富蓉 | C138: 10601763328 | D138: 230606白云区第九中学 | E138: 04初中生物教师 | F138: 124 | G138: 82.67 | H138: 33.07 | I138: 71.6 | J138: 42.96 | K138: 76.03 | L138: 3
A139: 137 | B139: 曹贵芸 | C139: 10601883813 | D139: 230606白云区第九中学 | E139: 04初中生物教师 | F139: 123 | G139: 82.00 | H139: 32.80 | I139: 69.18 | J139: 41.51 | K139: 74.31 | L139: 4
A140: 138 | B140: 李显团 | C140: 10601750314 | D140: 230606白云区第九中学 | E140: 04初中生物教师 | F140: 123 | G140: 82.00 | H140: 32.80 | I140: 68.7 | J140: 41.22 | K140: 74.02 | L140: 5
A141: 139 | B141: 李向丹 | C141: 10601881008 | D141: 230606白云区第九中学 | E141: 04初中生物教师 | F141: 122.5 | G141: 81.67 | H141: 32.67 | I141: 65.04 | J141: 39.02 | K141: 71.69 | L141: 6
A142: 140 | B142: 王文明 | C142: 10601762016 | D142: 230606白云区第九中学 | E142: 05初中体育教师 | F142: 126 | G142: 84.00 | H142: 33.60 | I142: 80 | J142: 48.00 | K142: 81.60 | L142: 1 | M142: 是
A143: 141 | B143: 欧阳明俊 | C143: 10601871421 | D143: 230606白云区第九中学 | E143: 05初中体育教师 | F143: 123 | G143: 82.00 | H143: 32.80 | I143: 76.86 | J143: 46.12 | K143: 78.92 | L143: 2
A144: 142 | B144: 母超荣 | C144: 10601872305 | D144: 230606白云区第九中学 | E144: 05初中体育教师 | F144: 117 | G144: 78.00 | H144: 31.20 | I144: 76.84 | J144: 46.10 | K144: 77.30 | L144: 3
A145: 143 | B145: 李倩 | C145: 10601751621 | D145: 230606白云区第九中学 | E145: 05初中体育教师 | F145: 117 | G145: 78.00 | H145: 31.20 | I145: 76.36 | J145: 45.82 | K145: 77.02 | L145: 4
A146: 144 | B146: 李德全 | C146: 10601883522 | D146: 230606白云区第九中学 | E146: 05初中体育教师 | F146: 123 | G146: 82.00 | H146: 32.80 | I146: 73.5 | J146: 44.10 | K146: 76.90 | L146: 5
A147: 145 | B147: 聂耳 | C147: 10601861005 | D147: 230606白云区第九中学 | E147: 05初中体育教师 | F147: 119 | G147: 79.33 | H147: 31.73 | I147: 74.86 | J147: 44.92 | K147: 76.65 | L147: 6
A148: 146 | B148: 张界 | C148: 10601883129 | D148: 230606白云区第九中学 | E148: 05初中体育教师 | F148: 117 | G148: 78.00 | H148: 31.20 | I148: 73.96 | J148: 44.38 | K148: 75.58 | L148: 7
A149: 147 | B149: 王金凤 | C149: 10601873005 | D149: 230607白云区第十中学 | E149: 01初中化学教师 | F149: 126 | G149: 84.00 | H149: 33.60 | I149: 81.54 | J149: 48.92 | K149: 82.52 | L149: 1 | M149: 是
A150: 148 | B150: 汤天娇 | C150: 10601752525 | D150: 230607白云区第十中学 | E150: 01初中化学教师 | F150: 124.5 | G150: 83.00 | H150: 33.20 | I150: 78.62 | J150: 47.17 | K150: 80.37 | L150: 2
A151: 149 | B151: 王钦 | C151: 10601883511 | D151: 230607白云区第十中学 | E151: 01初中化学教师 | F151: 126.5 | G151: 84.33 | H151: 33.73 | I151: 77.6 | J151: 46.56 | K151: 80.29 | L151: 3
A152: 150 | B152: 郭辉 | C152: 10601862923 | D152: 230607白云区第十中学 | E152: 01初中化学教师 | F152: 127 | G152: 84.67 | H152: 33.87 | I152: 74.6 | J152: 44.76 | K152: 78.63 | L152: 4
A153: 151 | B153: 邹尧 | C153: 10601862629 | D153: 230607白云区第十中学 | E153: 01初中化学教师 | F153: 124 | G153: 82.67 | H153: 33.07 | I153: 71.4 | J153: 42.84 | K153: 75.91 | L153: 5
A154: 152 | B154: 邹龙仙 | C154: 10601861628 | D154: 230607白云区第十中学 | E154: 01初中化学教师 | F154: 124.5 | G154: 83.00 | H154: 33.20 | I154: 71.16 | J154: 42.70 | K154: 75.90 | L154: 6
A155: 153 | B155: 潘西江 | C155: 10601763015 | D155: 230608白云区第三中学 | E155: 01初中数学教师 | F155: 131.5 | G155: 87.67 | H155: 35.07 | I155: 83.62 | J155: 50.17 | K155: 85.24 | L155: 1 | M155: 是
A156: 154 | B156: 苟茂俊 | C156: 10601753101 | D156: 230608白云区第三中学 | E156: 01初中数学教师 | F156: 128.5 | G156: 85.67 | H156: 34.27 | I156: 82.36 | J156: 49.42 | K156: 83.68 | L156: 2 | M156: 是
A157: 155 | B157: 陈娇 | C157: 10601763306 | D157: 230608白云区第三中学 | E157: 01初中数学教师 | F157: 114 | G157: 76.00 | H157: 30.40 | I157: 79.76 | J157: 47.86 | K157: 78.26 | L157: 3
A158: 156 | B158: 吴丹 | C158: 10601751403 | D158: 230608白云区第三中学 | E158: 01初中数学教师 | F158: 121 | G158: 80.67 | H158: 32.27 | I158: 76.08 | J158: 45.65 | K158: 77.91 | L158: 4
A159: 157 | B159: 周雷 | C159: 10601763410 | D159: 230608白云区第三中学 | E159: 01初中数学教师 | F159: 109 | G159: 72.67 | H159: 29.07 | I159: 81.22 | J159: 48.73 | K159: 77.80 | L159: 5
A160: 158 | B160: 申学梅 | C160: 10601860309 | D160: 230608白云区第三中学 | E160: 01初中数学教师 | F160: 120 | G160: 80.00 | H160: 32.00 | I160: 74.28 | J160: 44.57 | K160: 76.57 | L160: 6
A161: 159 | B161: 徐梦 | C161: 10601872508 | D161: 230608白云区第三中学 | E161: 01初中数学教师 | F161: 110 | G161: 73.33 | H161: 29.33 | I161: 77.88 | J161: 46.73 | K161: 76.06 | L161: 7
A162: 160 | B162: 李立 | C162: 10601763808 | D162: 230608白云区第三中学 | E162: 01初中数学教师 | F162: 117 | G162: 78.00 | H162: 31.20 | I162: 71.98 | J162: 43.19 | K162: 74.39 | L162: 8
A163: 161 | B163: 周杨 | C163: 10601763729 | D163: 230608白云区第三中学 | E163: 01初中数学教师 | F163: 118.5 | G163: 79.00 | H163: 31.60 | I163: 0.00 | J163: 0.00 | K163: 31.60 | L163: 9
A164: 162 | B164: 张豪华 | C164: 10601763417 | D164: 230608白云区第三中学 | E164: 01初中数学教师 | F164: 113.5 | G164: 75.67 | H164: 30.27 | I164: 0.00 | J164: 0.00 | K164: 30.27 | L164: 10
A165: 163 | B165: 吴玉兰 | C165: 10601760103 | D165: 230608白云区第三中学 | E165: 01初中数学教师 | F165: 113.5 | G165: 75.67 | H165: 30.27 | I165: 0.00 | J165: 0.00 | K165: 30.27 | L165: 11
A166: 164 | B166: 李欣宇 | C166: 10601862003 | D166: 230608白云区第三中学 | E166: 01初中数学教师 | F166: 109 | G166: 72.67 | H166: 29.07 | I166: 0.00 | J166: 0.00 | K166: 29.07 | L166: 12
A167: 165 | B167: 王亚丽 | C167: 10601761018 | D167: 230608白云区第三中学 | E167: 02初中生物教师 | F167: 127 | G167: 84.67 | H167: 33.87 | I167: 83.44 | J167: 50.06 | K167: 83.93 | L167: 1 | M167: 是
A168: 166 | B168: 杨芳 | C168: 10601753707 | D168: 230608白云区第三中学 | E168: 02初中生物教师 | F168: 124.5 | G168: 83.00 | H168: 33.20 | I168: 77.5 | J168: 46.50 | K168: 79.70 | L168: 2
A169: 167 | B169: 刘萍 | C169: 10601863314 | D169: 230608白云区第三中学 | E169: 02初中生物教师 | F169: 119 | G169: 79.33 | H169: 31.73 | I169: 76.8 | J169: 46.08 | K169: 77.81 | L169: 3
A170: 168 | B170: 曾佳芳 | C170: 10601860123 | D170: 230608白云区第三中学 | E170: 02初中生物教师 | F170: 125 | G170: 83.33 | H170: 33.33 | I170: 69.94 | J170: 41.96 | K170: 75.30 | L170: 4
A171: 169 | B171: 王渝茸 | C171: 10601872811 | D171: 230608白云区第三中学 | E171: 02初中生物教师 | F171: 126 | G171: 84.00 | H171: 33.60 | I171: 68.9 | J171: 41.34 | K171: 74.94 | L171: 5
A172: 170 | B172: 李红纺 | C172: 10601754302 | D172: 230608白云区第三中学 | E172: 02初中生物教师 | F172: 126.5 | G172: 84.33 | H172: 33.73 | I172: 0 | J172: 0.00 | K172: 33.73 | L172: 6
A173: 171 | B173: 徐紫娟 | C173: 10601751710 | D173: 230609白云区第六中学 | E173: 01初中数学教师 | F173: 114 | G173: 76.00 | H173: 30.40 | I173: 85.74 | J173: 51.44 | K173: 81.84 | L173: 1 | M173: 是
A174: 172 | B174: 孔韵 | C174: 10601763912 | D174: 230609白云区第六中学 | E174: 01初中数学教师 | F174: 117 | G174: 78.00 | H174: 31.20 | I174: 77.34 | J174: 46.40 | K174: 77.60 | L174: 2
A175: 173 | B175: 班舒舒 | C175: 10601873012 | D175: 230609白云区第六中学 | E175: 01初中数学教师 | F175: 108 | G175: 72.00 | H175: 28.80 | I175: 74.46 | J175: 44.68 | K175: 73.48 | L175: 3
A176: 174 | B176: 郑前丽 | C176: 10601861914 | D176: 230609白云区第六中学 | E176: 01初中数学教师 | F176: 107.5 | G176: 71.67 | H176: 28.67 | I176: 74.62 | J176: 44.77 | K176: 73.44 | L176: 4
A177: 175 | B177: 陈林 | C177: 10601753819 | D177: 230609白云区第六中学 | E177: 01初中数学教师 | F177: 110 | G177: 73.33 | H177: 29.33 | I177: 71.10 | J177: 42.66 | K177: 71.99 | L177: 5
A178: 176 | B178: 张亮 | C178: 10601882120 | D178: 230609白云区第六中学 | E178: 01初中数学教师 | F178: 109.5 | G178: 73.00 | H178: 29.20 | I178: 60.50 | J178: 36.30 | K178: 65.50 | L178: 6
A179: 177 | B179: 华钟洁茹 | C179: 10601763805 | D179: 230609白云区第六中学 | E179: 02初中英语教师 | F179: 123 | G179: 82.00 | H179: 32.80 | I179: 86.00 | J179: 51.60 | K179: 84.40 | L179: 1 | M179: 是
A180: 178 | B180: 范银花 | C180: 10601881724 | D180: 230609白云区第六中学 | E180: 02初中英语教师 | F180: 124 | G180: 82.67 | H180: 33.07 | I180: 73.84 | J180: 44.30 | K180: 77.37 | L180: 2
A181: 179 | B181: 代亚男 | C181: 10601751719 | D181: 230609白云区第六中学 | E181: 02初中英语教师 | F181: 124.5 | G181: 83.00 | H181: 33.20 | I181: 68.94 | J181: 41.36 | K181: 74.56 | L181: 3
A182: 180 | B182: 赵雪飘 | C182: 10601883122 | D182: 230609白云区第六中学 | E182: 02初中英语教师 | F182: 120.5 | G182: 80.33 | H182: 32.13 | I182: 70.24 | J182: 42.14 | K182: 74.28 | L182: 4
A183: 181 | B183: 何爱连 | C183: 10601882405 | D183: 230609白云区第六中学 | E183: 02初中英语教师 | F183: 122.5 | G183: 81.67 | H183: 32.67 | I183: 67.96 | J183: 40.78 | K183: 73.44 | L183: 5
A184: 182 | B184: 张俊宇 | C184: 10601752414 | D184: 230609白云区第六中学 | E184: 02初中英语教师 | F184: 120.5 | G184: 80.33 | H184: 32.13 | I184: 66.60 | J184: 39.96 | K184: 72.09 | L184: 6
A185: 183 | B185: 常雪琴 | C185: 10601763908 | D185: 230609白云区第六中学 | E185: 02初中英语教师 | F185: 121 | G185: 80.67 | H185: 32.27 | I185: 0.00 | J185: 0.00 | K185: 32.27 | L185: 7
A186: 184 | B186: 令狐艳 | C186: 10601751924 | D186: 230610白云区第八中学（中学部） | E186: 01初中英语教师 | F186: 121.5 | G186: 81.00 | H186: 32.40 | I186: 83.98 | J186: 50.39 | K186: 82.79 | L186: 1 | M186: 是
A187: 185 | B187: 李立醇 | C187: 10601751520 | D187: 230610白云区第八中学（中学部） | E187: 01初中英语教师 | F187: 125.5 | G187: 83.67 | H187: 33.47 | I187: 79.42 | J187: 47.65 | K187: 81.12 | L187: 2
A188: 186 | B188: 蒋金萍 | C188: 10601862410 | D188: 230610白云区第八中学（中学部） | E188: 01初中英语教师 | F188: 127 | G188: 84.67 | H188: 33.87 | I188: 71.14 | J188: 42.68 | K188: 76.55 | L188: 3
A189: 187 | B189: 谢雨婷 | C189: 10601753302 | D189: 230610白云区第八中学（中学部） | E189: 01初中英语教师 | F189: 121 | G189: 80.67 | H189: 32.27 | I189: 73.70 | J189: 44.22 | K189: 76.49 | L189: 4
A190: 188 | B190: 杨苏艳 | C190: 10601871930 | D190: 230610白云区第八中学（中学部） | E190: 01初中英语教师 | F190: 121.5 | G190: 81.00 | H190: 32.40 | I190: 69.44 | J190: 41.66 | K190: 74.06 | L190: 5
A191: 189 | B191: 马兰兰 | C191: 10601753224 | D191: 230610白云区第八中学（中学部） | E191: 01初中英语教师 | F191: 122 | G191: 81.33 | H191: 32.53 | I191: 64.56 | J191: 38.74 | K191: 71.27 | L191: 6
A192: 190 | B192: 赵雷 | C192: 10601860327 | D192: 230611白云区民族中学 | E192: 01初中语文教师 | F192: 130.5 | G192: 87.00 | H192: 34.80 | I192: 89.16 | J192: 53.50 | K192: 88.30 | L192: 1 | M192: 是
A193: 191 | B193: 马汝谭 | C193: 10601870321 | D193: 230611白云区民族中学 | E193: 01初中语文教师 | F193: 127.5 | G193: 85.00 | H193: 34.00 | I193: 89.92 | J193: 53.95 | K193: 87.95 | L193: 2 | M193: 是
A194: 192 | B194: 黄海霞 | C194: 10601881517 | D194: 230611白云区民族中学 | E194: 01初中语文教师 | F194: 128.5 | G194: 85.67 | H194: 34.27 | I194: 86.82 | J194: 52.09 | K194: 86.36 | L194: 3
A195: 193 | B195: 陈英 | C195: 10601881223 | D195: 230611白云区民族中学 | E195: 01初中语文教师 | F195: 125.5 | G195: =F195/1.5 -> 83.67 | H195: =G195*0.4 -> 33.47 | I195: 88.04 | J195: =I195*0.6 -> 52.82 | K195: =H195+J195 -> 86.29 | L195: 4
A196: 194 | B196: 吴传顺 | C196: 10601872430 | D196: 230611白云区民族中学 | E196: 01初中语文教师 | F196: 122 | G196: 81.33 | H196: 32.53 | I196: 85.94 | J196: 51.56 | K196: 84.10 | L196: 5
A197: 195 | B197: 程习 | C197: 10601751310 | D197: 230611白云区民族中学 | E197: 01初中语文教师 | F197: 128 | G197: 85.33 | H197: 34.13 | I197: 82.10 | J197: 49.26 | K197: 83.39 | L197: 6
A198: 196 | B198: 张晓琴 | C198: 10601882805 | D198: 230611白云区民族中学 | E198: 01初中语文教师 | F198: 121 | G198: 80.67 | H198: 32.27 | I198: 84.08 | J198: 50.45 | K198: 82.71 | L198: 7
A199: 197 | B199: 喻秀梅 | C199: 10601762327 | D199: 230611白云区民族中学 | E199: 01初中语文教师 | F199: 122.5 | G199: 81.67 | H199: 32.67 | I199: 81.66 | J199: 49.00 | K199: 81.66 | L199: 8
A200: 198 | B200: 鲁春玲 | C200: 10601762922 | D200: 230611白云区民族中学 | E200: 01初中语文教师 | F200: 129 | G200: 86.00 | H200: 34.40 | I200: 78.44 | J200: 47.06 | K200: 81.46 | L200: 9
... 507 more rows
